Workbook

Sheet 본부
A1: 국민권익위원회 본부 상품권 구매 및 사용 내역 (2023년 7월 ~ 2023년 12월)
N2: (단위 : 장, 원)
A3: 부서명 | B3: 종류 | C3: 구매내역 | J3: 사용내역 | N3: 비고
C4: 구매일자 | D4: 구매처 | E4: 구매목적 | F4: 구매수량 | G4: 총구매액 (액면가, A) | H4: 총구매액 (구매가, B) | I4: 할인율 [(A-B)/A] | J4: 사용기간 | K4: 사용목적 | L4: 사용수량 | M4: 잔여수량
A5: 국민신문고과 | B5: 모바일문화상품권 | C5: 2023-07-03 | D5: 엠투넷 | E5: 국민생각함 대국민, 국민패널 의견수렴(이해충돌방지법) 관련 경품 지급 | F5: 100 | G5: 500000 | H5: 490000 | I5: =(G5-H5)/G5 -> 0.02 | J5: 2023-07-03 | K5: 국민생각함 참여활성화 | L5: 100 | M5: 0
B6: 모바일문화상품권 | C6: 2023-08-02 | D6: 엠투넷 | E6: 강력범죄 신상공개 확대 설문조사 관련 경품 지급(국민패널) | F6: 50 | G6: 250000 | H6: 245000 | I6: =(G6-H6)/G6 -> 0.02 | J6: 2023-08-02 | K6: 국민생각함 참여활성화 | L6: 50 | M6: 0
B7: 모바일문화상품권 | C7: 2023-08-02 | D7: 엠투넷 | E7: 강력범죄 신상공개 확대 설문조사 관련 경품 지급(일반국민) | F7: 50 | G7: 250000 | H7: 245000 | I7: 0.02 | J7: 2023-08-02 | K7: 국민생각함 참여활성화 | L7: 50 | M7: 0
B8: 모바일문화상품권 | C8: 2023-08-07 | D8: 엠투넷 | E8: 청소년 마약 예방 교육 관련 의견수렴 결과 경품 지출 | F8: 50 | G8: 250000 | H8: 245000 | I8: 0.02 | J8: 2023-08-07 | K8: 국민생각함 참여활성화 | L8: 50 | M8: 0
B9: 모바일문화상품권 | C9: 2023-10-06 | D9: 엠투넷 | E9: 국산콩 소비 활성화 관련 의견수렴 결과 경품 지출 | F9: 100 | G9: 500000 | H9: 490000 | I9: 0.02 | J9: 2023-10-06 | K9: 국민생각함 참여활성화 | L9: 100 | M9: 0
B10: 모바일문화상품권 | C10: 2023-10-06 | D10: 엠투넷 | E10: 창덕궁 후원 관람제도 개선 관련 의견수렴 결과 경품 지출 | F10: 100 | G10: 500000 | H10: 490000 | I10: 0.02 | J10: 2023-10-06 | K10: 국민생각함 참여활성화 | L10: 100 | M10: 0
B11: 모바일문화상품권 | C11: 2023-10-06 | D11: 엠투넷 | E11: 23년 3분기 우수 국민안건 선정 관련 의견수렴 결과 경품 지출 | F11: 104 | G11: 620000 | H11: 607600 | I11: 0.02 | J11: 2023-10-06 | K11: 국민생각함 참여활성화 | L11: 104 | M11: 0
B12: 모바일문화상품권 | C12: 2023-10-10 | D12: 엠투넷 | E12: 사슴피해 민원 관련 의견수렴 결과 경품 지출 | F12: 150 | G12: 750000 | H12: 735000 | I12: 0.02 | J12: 2023-10-10 | K12: 국민생각함 참여활성화 | L12: 150 | M12: 0
B13: 모바일문화상품권 | C13: 2023-10-16 | D13: 엠투넷 | E13: 23년 청소년,청년,시니어 정책 아이디어 경진대회 결과 경품 지급 | F13: 100 | G13: 500000 | H13: 490000 | I13: 0.02 | J13: 2023-10-16 | K13: 국민생각함 참여활성화 | L13: 100 | M13: 0
B14: 모바일문화상품권 | C14: 2023-10-24 | D14: 엠투넷 | E14: 국가보훈광장 활성화 방안에 관한 의견수렴 결과 경품 지급 | F14: 100 | G14: 500000 | H14: 490000 | I14: 0.02 | J14: 2023-10-24 | K14: 국민생각함 참여활성화 | L14: 100 | M14: 0
B15: 모바일문화상품권 | C15: 2023-10-24 | D15: 엠투넷 | E15: 국민생각함 올해의 안건(국민 부문) 선호도 조사 결과에 따른 경품 지급 | F15: 100 | G15: 500000 | H15: 490000 | I15: 0.02 | J15: 2023-10-24 | K15: 국민생각함 참여활성화 | L15: 100 | M15: 0
B16: 모바일문화상품권 | C16: 2023-10-24 | D16: 엠투넷 | E16: 생활시간조사 관련 의견수렴 결과 경품 지급(통계청 협업) | F16: 100 | G16: 500000 | H16: 490000 | I16: 0.02 | J16: 2023-10-24 | K16: 국민생각함 참여활성화 | L16: 100 | M16: 0
B17: 지류상품권 | C17: 2023-11-27 | D17: 해피머니아이엔씨 | E17: 2023년 국민생각함 활용 우수자 부상품(문화상품권) 구매 | F17: 690 | G17: 6900000 | H17: 6555000 | I17: 0.05 | J17: 2023-11-28 | K17: 국민생각함 참여활성화 | L17: 690 | M17: 0
B18: 모바일문화상품권 | C18: 2023-12-07 | D18: 엠투넷 | E18: 휴대폰 촬영음 설정 자율화 관련 의견수렴 결과 경품 지급 | F18: 100 | G18: 500000 | H18: 490000 | I18: 0.02 | J18: 2023-12-07 | K18: 국민생각함 참여활성화 | L18: 100 | M18: 0
B19: 모바일문화상품권 | C19: 2023-12-08 | D19: 엠투넷 | E19: 만 나이 제도 시행현황 관련 의견수렴 결과 경품 지급 | F19: 50 | G19: 250000 | H19: 245000 | I19: 0.02 | J19: 2023-12-08 | K19: 국민생각함 참여활성화 | L19: 50 | M19: 0
B20: 모바일문화상품권 | C20: 2023-12-08 | D20: 엠투넷 | E20: 문화재청 중요기록물 관련 의견수렴 결과 경품 지급 | F20: 100 | G20: 500000 | H20: 490000 | I20: 0.02 | J20: 2023-12-08 | K20: 국민생각함 참여활성화 | L20: 100 | M20: 0
B21: 모바일문화상품권 | C21: 2023-12-22 | D21: 엠투넷 | E21: 통계청 인구주택총조사 설문 관련 경품 지급 | F21: 100 | G21: 500000 | H21: 490000 | I21: 0.02 | J21: 2023-12-22 | K21: 국민생각함 참여활성화 | L21: 100 | M21: 0
B22: 모바일문화상품권 | C22: 2023-12-22 | D22: 엠투넷 | E22: 국민생각함 국민 우수안건(23년 4분기) 투표 결과 경품 지급 | F22: 105 | G22: 680000 | H22: 666400 | I22: 0.02 | J22: 2023-12-22 | K22: 국민생각함 참여활성화 | L22: 105 | M22: 0
A23: 심사기획과 | B23: 모바일상품권 | C23: 2023-07-04 | D23: 엠투넷 | E23: 청렴포털 이용만족도 설문조사 경품 지급 | F23: 56 | G23: 280000 | H23: 274400 | I23: =(G23-H23)/H23 -> 0.02040816327 | J23: 2023-07-03 | K23: 청렴포털 이용만족도 설문조사 경품 지급 | L23: 56 | M23: 0
B24: 모바일상품권 | C24: 2023-12-19 | D24: 엠투넷 | E24: 청렴포털 이용만족도 설문조사 경품 지급 | F24: 80 | G24: 400000 | H24: 392000 | I24: =(G24-H24)/H24 -> 0.02040816327 | J24: 2023-12-19 | K24: 청렴포털 이용만족도 설문조사 경품 지급 | L24: 80 | M24: -
A25: 홍보담당관실 | B25: 모바일상품권 | C25: 2023-07-11 | D25: 기프티쇼 비즈 | E25: SNS 6월 권익it슈다의 다음 주제 선정 이벤트(소통형) 경품 | F25: 30 | G25: 150000 | H25: 132000 | I25: 0.12 | J25: 2023-07-11 | K25: SNS 6월 권익it슈다의 다음 주제 선정 이벤트(소통형) 경품 | L25: 30 | M25: 0
C26: 2023-07-19 | D26: ㈜해피머니아이엔씨 | E26: 2023년 상반기 월별 우수활동 청백리포터 포상품(모바일문화상품권) | F26: 6 | G26: 300000 | H26: 285000 | I26: =(G26-H26)/G26 -> 0.05 | J26: 2023-07-19 | K26: 2023년 상반기 월별 우수활동 청백리포터 포상품(모바일문화상품권) | L26: 6 | M26: 0
C27: 2023-08-08 | D27: 기프티쇼 비즈 | E27: SNS 7월 공정채용 영상 1편 감상평 이벤트(소통형) 경품 | F27: 30 | G27: 135000 | H27: 114600 | I27: 0.15 | J27: 2023-08-08 | K27: SNS 7월 공정채용 영상 1편 감상평 이벤트(소통형) 경품 | L27: 30 | M27: 0
C28: 2023-08-21 | D28: 기프티쇼 비즈 | E28: SNS 8월 공정채용 영상 2편 감상평 & 퀴즈 이벤트(소통형) 경품 | F28: 30 | G28: 135000 | H28: 114600 | I28: 0.15 | J28: 2023-08-21 | K28: SNS 8월 공정채용 영상 2편 감상평 & 퀴즈 이벤트(소통형) 경품 | L28: 30 | M28: 0
C29: 2023-09-11 | D29: 기프티쇼 비즈 | E29: 페이스북 8월 이벤트 경품 | F29: 28 | G29: 126000 | H29: 110880 | I29: 0.12 | J29: 2023-09-11 | K29: 페이스북 8월 이벤트 경품 | L29: 28 | M29: 0
C30: 2023-09-15 | D30: 기프티쇼 비즈 | E30: 트위터 8월 이벤트 경품 | F30: 8 | G30: 36000 | H30: 31680 | I30: 0.12 | J30: 2023-09-15 | K30: 트위터 8월 이벤트 경품 | L30: 8 | M30: 0
C31: 2023-09-22 | D31: 카카오톡 선물하기 비즈 | E31: 인스타그램 8월 이벤트 경품 | F31: 23 | G31: 103500 | H31: 103500 | I31: 0 | J31: 2023-09-22 | K31: 인스타그램 8월 이벤트 경품 | L31: 23 | M31: 0
C32: 2023-09-26 | D32: 카카오톡 선물하기 비즈 | E32: SNS 9월 청탁금지법 능력고사 이벤트 경품 | F32: 30 | G32: 195000 | H32: 195000 | I32: 0 | J32: 2023-09-26 | K32: SNS 9월 청탁금지법 능력고사 이벤트 경품 | L32: 30 | M32: 0
C33: 2023-10-05 | D33: 카카오톡 선물하기 비즈 | E33: 페이스북 9월 이벤트 경품 | F33: 26 | G33: 130000 | H33: 130000 | I33: 0 | J33: 2023-10-05 | K33: 페이스북 9월 이벤트 경품 | L33: 26 | M33: 0
C34: 2023-10-23 | D34: 카카오톡 선물하기 비즈 | E34: 인스타그램 9월 이벤트 경품 | F34: 7 | G34: 70000 | H34: 70000 | I34: 0 | J34: 2023-10-23 | K34: 인스타그램 9월 이벤트 경품 | L34: 7 | M34: 0
C35: 2023-10-31 | D35: 카카오톡 선물하기 비즈 | E35: 페이스북 10월 이벤트 경품 | F35: 19 | G35: 95000 | H35: 95000 | I35: 0 | J35: 2023-10-31 | K35: 페이스북 10월 이벤트 경품 | L35: 19 | M35: 0
C36: 2023-11-10 | D36: 카카오톡 선물하기 비즈 | E36: 유튜브 제이콥 채용비리 이벤트 경품 | F36: 13 | G36: 130000 | H36: 130000 | I36: 0 | J36: 2023-11-10 | K36: 유튜브 제이콥 채용비리 이벤트 경품 | L36: 13 | M36: 0
C37: 2023-11-13 | D37: 카카오톡 선물하기 비즈 | E37: 페이스북 권익위 정책 참여 퀴즈 1탄(국민신문고) 경품 | F37: 10 | G37: 100000 | H37: 100000 | I37: 0 | J37: 2023-11-13 | K37: 페이스북 권익위 정책 참여 퀴즈 1탄(국민신문고) 경품 | L37: 10 | M37: 0
C38: 2023-11-14 | D38: 카카오톡 선물하기 비즈 | E38: 페이스북 국민생각함 올해 정책 이벤트 경품 | F38: 10 | G38: 100000 | H38: 100000 | I38: 0 | J38: 2023-11-14 | K38: 페이스북 국민생각함 올해 정책 이벤트 경품 | L38: 10 | M38: 0
C39: 2023-11-14 | D39: 카카오톡 선물하기 비즈 | E39: 유튜브 안마도 참여 이벤트 당첨자 경품 | F39: 7 | G39: 70000 | H39: 70000 | I39: 0 | J39: 2023-11-14 | K39: 유튜브 안마도 참여 이벤트 당첨자 경품 | L39: 7 | M39: 0
C40: 2023-11-20 | D40: 카카오톡 선물하기 비즈 | E40: 유튜브 부산 엑스포 참여 이벤트 당첨자 경품(갤럭시 버즈2) | F40: 1 | G40: 116000 | H40: 116000 | I40: 0 | J40: 2023-11-20 | K40: 유튜브 부산 엑스포 참여 이벤트 당첨자 경품(갤럭시 버즈2) | L40: 1 | M40: 0
B41: 모바일상품권 | C41: 2023-11-20 | D41: 카카오톡 선물하기 비즈 | E41: 유튜브 부산 엑스포 참여 이벤트 당첨자 경품(메가MGC커피) | F41: 14 | G41: 140000 | H41: 140000 | I41: 0 | J41: 2023-11-20 | K41: 유튜브 부산 엑스포 참여 이벤트 당첨자 경품(메가MGC커피) | L41: 14 | M41: 0
C42: 2023-11-21 | D42: 카카오톡 선물하기 비즈 | E42: 페이스북 권익위 정책 참여 퀴즈 2탄(국민생각함) 경품 | F42: 8 | G42: 80000 | H42: 80000 | I42: 0 | J42: 2023-11-21 | K42: 페이스북 권익위 정책 참여 퀴즈 2탄(국민생각함) 경품 | L42: 8 | M42: 0
C43: 2023-11-27 | D43: 카카오톡 선물하기 비즈 | E43: 페이스북 권익위 정책 참여 퀴즈 3탄(공익신고자 보호) 경품 | F43: 9 | G43: 90000 | H43: 90000 | I43: 0 | J43: 2023-11-27 | K43: 페이스북 권익위 정책 참여 퀴즈 3탄(공익신고자 보호) 경품 | L43: 9 | M43: 0
C44: 2023-12-11 | D44: 카카오톡 선물하기 비즈 | E44: 페이스북 토익 기한 연장 이벤트 당첨자 경품 | F44: 15 | G44: 150000 | H44: 150000 | I44: 0 | J44: 2023-12-11 | K44: 페이스북 토익 기한 연장 이벤트 당첨자 경품 | L44: 15 | M44: 0
C45: 2023-12-11 | D45: 카카오톡 선물하기 비즈 | E45: 페이스북 공익 신고의 날 이벤트 당첨자 경품 | F45: 13 | G45: 130000 | H45: 130000 | I45: 0 | J45: 2023-12-11 | K45: 페이스북 공익 신고의 날 이벤트 당첨자 경품 | L45: 13 | M45: 0
C46: 2023-12-11 | D46: 카카오톡 선물하기 비즈 | E46: 유튜브 불법 사이트 운영자 퀴즈 이벤트 당첨자 경품 | F46: 12 | G46: 120000 | H46: 120000 | I46: 0 | J46: 2023-12-11 | K46: 유튜브 불법 사이트 운영자 퀴즈 이벤트 당첨자 경품 | L46: 12 | M46: 0
C47: 2023-12-14 | D47: 카카오톡 선물하기 비즈 | E47: 페이스북 권익위 정책 참여 퀴즈 4탄(부패신고자 보호) 경품 | F47: 14 | G47: 140000 | H47: 140000 | I47: 0 | J47: 2023-12-14 | K47: 페이스북 권익위 정책 참여 퀴즈 4탄(부패신고자 보호) 경품 | L47: 14 | M47: 0
C48: 2023-12-19 | D48: 카카오톡 선물하기 비즈 | E48: 만족도 조사 당첨자 경품 | F48: 50 | G48: 250000 | H48: 250000 | I48: 0 | J48: 2023-12-19 | K48: 만족도 조사 당첨자 경품 | L48: 50 | M48: 0
C49: 2023-12-26 | D49: ㈜해피머니아이엔씨 | E49: 2023년 하반기 월별 우수활동 청백리포터 포상품(모바일문화상품권) | F49: 12 | G49: 600000 | H49: 570000 | I49: =(G49-H49)/G49 -> 0.05 | J49: 2023-12-26 | K49: 2023년 하반기 월별 우수활동 청백리포터 포상품(모바일문화상품권) | L49: 12 | M49: 0
A50: 민원정보분석과 | B50: 모바일상품권 | C50: 2023-12-14 | D50: 모루컴퍼니 | E50: 정부박람회 민원빅데이터 온라인홍보 이벤트 | F50: 200 | G50: 1100000 | H50: 1100000 | I50: 0 | J50: 2023-12-14 | K50: 정부박람회 민원빅데이터 온라인홍보 이벤트 | L50: 200 | M50: 0
A51: 혁신행정데이터담당관 | B51: 모바일상품권 | C51: 2023-07-13 | D51: ㈜엠투넷 | E51: 23년도 공공데이터 개방수요 설문조사 | F51: 50 | G51: 250000 | H51: 250000 | I51: 0 | J51: ~2023-07-14 | K51: 2023년 공공데이터 개방수요 및 이용만족도 설문조사 기프티콘 지급 | L51: 50 | M51: 0
C52: 2023-08-10 | D52: ㈜엠투넷 | E52: 2023년 적극행정 마일리지 4행시 이벤트 | F52: 34 | G52: 350000 | H52: 343000 | I52: =(G52-H52)/G52 -> 0.02 | J52: ~2023-08-10 | K52: 2023년 적극행정 마일리지 4행시 이벤트 상품 기프티콘 지급 | L52: 34 | M52: 0
C53: 2023-10-10 | D53: ㈜엠투넷 | E53: 2023년 혁신 우수사례 경진대회 상품 | F53: 20 | G53: 100000 | H53: 98000 | I53: =(G53-H53)/G53 -> 0.02 | J53: ~2023-10-10 | K53: 2023년 혁신 우수사례 경진대회 상품 기프티콘 지급 | L53: 20 | M53: 0
C54: 2023-12-12 | D54: ㈜엠투넷 | E54: 소확행(소소하지만 확실한 적극행정) 참여 우수자 상품 | F54: 35 | G54: 300000 | H54: 294000 | I54: =(G54-H54)/G54 -> 0.02 | J54: ~2023-12-12 | K54: 소확행(소소하지만 확실한 적극행정) 참여 우수자 상품 기프티콘 지급 | L54: 35 | M54: 0
C55: 2023-12-21 | D55: ㈜엠투넷 | E55: 2023년 위원회 멘토링 활동 지원 | F55: 2 | G55: 20000 | H55: 19600 | I55: =(G55-H55)/G55 -> 0.02 | J55: ~2023-12-21 | K55: 2023년 위원회 멘토링 활동 지원 기프티콘 지급 | L55: 2 | M55: 0
C56: 2023-12-21 | D56: ㈜엠투넷 | E56: 적극행정 마일리지 보상 | F56: 9 | G56: 45000 | H56: 44100 | I56: =(G56-H56)/G56 -> 0.02 | J56: ~2023-12-21 | K56: 적극행정 마일리지 보상품(기프티콘) 지급 | L56: 9 | M56: 0
A57: 제도개선총괄과 | B57: 모바일상품권 | C57: 2023-10-10 | D57: 엠투넷 | E57: 대학기숙사 생활관 주거환경 개선 | F57: 50 | G57: 250000 | H57: 245000 | I57: 0.02 | J57: 2024-10-10 | K57: 국민생각함 의견수렴 경품 | L57: 50 | M57: 0
C58: 2023-11-13 | D58: 엠투넷 | E58: 육아휴직 공무원 인사우대 방안 | F58: 50 | G58: 250000 | H58: 245000 | I58: 0.02 | J58: 2024-11-13 | K58: 국민생각함 의견수렴 경품 | L58: 50 | M58: 0
A59: 운영지원과 | B59: 문화상품권 | C59: 2023-12-27 | D59: 해니머니아이엔씨 | E59: 직원생일축하 | F59: 50 | G59: =H59*100/95 -> 500000 | H59: 475000 | I59: 0.05 | J59: ~2023-12-31 | K59: 직원생일축하 | L59: 50 | M59: =F59-L59 -> 0
C60: 2023-12-05 | F60: 215 | G60: =H60*100/95 -> 2150000 | H60: 2042500 | I60: 0.05 | J60: ~2023-12-31 | L60: 215
C61: 2023-11-03 | F61: 230 | G61: =H61*100/95 -> 2300000 | H61: 2185000 | I61: 0.05 | J61: ~2023-11-30 | L61: 230 | M61: =F61-L61 -> 0
C62: 2023-10-11 | F62: 255 | G62: =H62*100/95 -> 2550000 | H62: 2422500 | I62: 0.05 | J62: ~2023-10-31 | L62: 255 | M62: =F62-L62 -> 0
C63: 2023-09-05 | F63: 150 | G63: =H63*100/95 -> 1500000 | H63: 1425000 | I63: 0.05 | J63: ~2023-09-30 | L63: 150 | M63: =F63-L63 -> 0
C64: 2023-08-07 | F64: 275 | G64: =H64*100/95 -> 2750000 | H64: 2612500 | I64: 0.05 | J64: ~2023-08-31 | L64: 275 | M64: =F64-L64 -> 0
C65: 2023-07-10 | F65: 210 | G65: =H65*100/95 -> 2100000 | H65: 1995000 | I65: 0.05 | J65: ~2023-07-31 | L65: 210 | M65: =F65-L65 -> 0

Sheet 청렴연수원
A1: 청렴연수원 상품권 구매 및 사용 내역 (2023년 7월 ~ 2023년 12월)
N2: (단위 : 장, 원)
A3: 부서명 | B3: 종류 | C3: 구매내역 | J3: 사용내역 | N3: 비고
C4: 구매일자 | D4: 구매처 | E4: 구매목적 | F4: 구매수량 | G4: 총구매액 (액면가, A) | H4: 총구매액 (구매가, B) | I4: 할인율 [(A-B)/A] | J4: 사용기간 | K4: 사용목적 | L4: 사용수량 | M4: 잔여수량
A5: 교육지원과 | B5: 문화상품권 | C5: 2023.5.24. | D5: ㈜해피머니아이엔씨 | E5: 직원 생일 축하 | F5: 190 | G5: 1900000 | H5: 1805000 | I5: 0.05 | J5: 2023.1월~12월 | K5: 직원 생일 축하 | L5: 175 | M5: 90 | N5: 전년도 잔여분 75
C6: 2023.4.12. | D6: 티켓타운 | E6: 학생대상 청렴교육 운영 | F6: 300 | G6: 1500000 | H6: 1440000 | I6: 0.04 | J6: 2023.4월~11월 | K6: 청렴골등벨 등 교육 우수 참여 학생 상품 | L6: 300 | M6: 0
C7: 2023.8.3. | D7: 우리문고 | E7: 지역 청소년대상 청렴교육 운영 | F7: 5 | G7: 25000 | H7: 25000 | I7: 0 | J7: 2023.11월~12월 | K7: 수능이후 고3대상 청렴교육 청렴골든벨 우수 학생 상품 | L7: 5 | M7: 0
C8: 2023.3.9. | D8: 티켓타운 | E8: 청렴윤리경영 교육운영 | F8: 270 | G8: 2700000 | H8: 2582000 | I8: 0.045 | J8: 2023.3월~12월 | K8: 청렴윤리경영 및 수능이후 고3대상 청렴교육 '청렴골든벨' 상품 | L8: 269 | M8: 1

Sheet 정부합동민원센터
A1: 정부합동민원센터 상품권 구매 및 사용 내역 (2023년 7월 ~ 2023년 12월)
N2: (단위 : 장, 원)
A3: 부서명 | B3: 종류 | C3: 구매내역 | J3: 사용내역 | N3: 비고
C4: 구매일자 | D4: 구매처 | E4: 구매목적 | F4: 구매수량 | G4: 총구매액 (액면가, A) | H4: 총구매액 (구매가, B) | I4: 할인율 [(A-B)/A] | J4: 사용기간 | K4: 사용목적 | L4: 사용수량 | M4: 잔여수량
A5: 고충상담기획과 (국민콜110) | B5: 해피머니상품권 | C5: 2023-07-03 | D5: ㈜해피머니아이엔씨 | E5: 6월 직원 생일 축하 | F5: 70 | G5: 700000 | H5: 665000 | I5: 0.05 | J5: 2023-07-04 | K5: 6월 직원 생일 축하 | L5: 70 | M5: 0
C6: 2023-08-07 | D6: ㈜해피머니아이엔씨 | E6: 7월 직원 생일 축하 | F6: 85 | G6: 850000 | H6: 807500 | I6: 0.05 | J6: 2023-08-07 | K6: 7월 직원 생일 축하 | L6: 85 | M6: 0
C7: 2023-09-05 | D7: ㈜해피머니아이엔씨 | E7: 8월 직원 생일 축하 | F7: 85 | G7: 850000 | H7: 807500 | I7: 0.05 | J7: 2023-09-05 | K7: 8월 직원 생일 축하 | L7: 85 | M7: 0
C8: 2023-10-11 | D8: ㈜해피머니아이엔씨 | E8: 9월 직원 생일 축하 | F8: 110 | G8: 1100000 | H8: 1045000 | I8: 0.05 | J8: 2023-10-11 | K8: 9월 직원 생일 축하 | L8: 110 | M8: 0
C9: 2023-11-06 | D9: ㈜해피머니아이엔씨 | E9: 10월 직원 생일 축하 | F9: 60 | G9: 600000 | H9: 570000 | I9: 0.05 | J9: 2023-11-06 | K9: 10월 직원 생일 축하 | L9: 60 | M9: 0
C10: 2023-12-06 | D10: ㈜해피머니아이엔씨 | E10: 11월 직원 생일 축하 | F10: 100 | G10: 1000000 | H10: 950000 | I10: 0.05 | J10: 2023-12-07 | K10: 11월 직원 생일 축하 | L10: 100 | M10: 0
C11: 2023-12-13 | D11: ㈜해피머니아이엔씨 | E11: 12월 직원 생일 축하 | F11: 55 | G11: 550000 | H11: 522500 | I11: 0.05 | J11: 2024-01-02 | K11: 12월 직원 생일 축하 | L11: 55 | M11: 0
B12: 온누리상품권 | C12: 2023-12-15 | D12: 농협과천청사지점 | E12: 정년퇴직 축하 | F12: 20 | G12: 200000 | H12: 200000 | I12: 0 | J12: 2023-12-27 | K12: 정년퇴직 축하 | L12: 20 | M12: 0
A13: 고충상담기획과 | B13: 해피머니상품권 | C13: 2023-07-04 | D13: 해피머니아이앤씨 | E13: 직원 생일 축하 | F13: 200 | G13: 2000000 | H13: 1900000 | I13: 0.05 | J13: 2023.7~2023.12. | K13: 직원 생일 축하 | L13: 200 | M13: 85 | N13: 상반기 구매 잔여분 포함
